bitfinex/quotes_BTCUSD_20250825
["timestamp","ask_amount","ask_price","bid_price","bid_amount"]
[1756135641494,0.54991211,112720.0,112710.0,0.1829104]
[1756135641723,0.20891211,112720.0,112710.0,0.1829104]
[1756135641938,0.20791211,112720.0,112710.0,0.1829104]
[1756135642155,0.53602386,112720.0,112710.0,0.1829104]
[1756135642385,0.53602386,112720.0,112710.0,0.00546386]
[1756135642608,0.55340583,112720.0,112710.0,0.00014386]
[1756135642819,0.55340583,112720.0,112710.0,0.00332386]
[1756135643030,0.53602386,112720.0,112710.0,0.00014386]
[1756135643838,0.53602386,112720.0,112710.0,0.00114386]
[1756135644052,0.53402386,112720.0,112710.0,0.00114386]
[1756135644445,0.53502386,112720.0,112710.0,0.00114386]
[1756135645294,0.54891177,112720.0,112710.0,0.00114386]
[1756135645927,0.71310638,112720.0,112710.0,0.00114386]
[1756135646142,0.7305554,112720.0,112710.0,0.00114386]
[1756135646347,0.69813281,112720.0,112710.0,0.00114386]
[1756135647176,0.84813281,112720.0,112710.0,0.00114386]
[1756135647387,0.96742505,112720.0,112710.0,0.00114386]
[1756135647768,0.96742505,112720.0,112710.0,0.00014386]
[1756135647974,5.99486405,112720.0,112710.0,1e-08]
[1756135648138,0.34,112690.0,112670.0,0.00324]
[1756135648347,0.33233378,112680.0,112670.0,0.00324]
[1756135648546,0.34892684,112680.0,112670.0,0.00539]
[1756135648752,0.19408684,112680.0,112670.0,0.00539]
[1756135648950,0.20797763,112680.0,112670.0,0.00539]
[1756135650376,0.20797763,112680.0,112670.0,0.00639]
[1756135650597,0.20806257,112680.0,112670.0,0.00539]
[1756135651023,0.20806257,112680.0,112670.0,0.00739]
[1756135651223,0.19146951,112680.0,112670.0,0.00739]
[1756135651380,0.20808183,112680.0,112670.0,0.00739]
[1756135651785,0.24503884,112680.0,112670.0,0.00739]
[1756135652005,0.23114805,112680.0,112670.0,0.00739]
[1756135652219,0.2311477,112680.0,112670.0,0.00739]
[1756135652408,0.2311477,112680.0,112670.0,0.00839]
[1756135653469,0.3859877,112680.0,112670.0,0.00839]
[1756135654808,0.2311477,112680.0,112670.0,0.00839]
[1756135655258,0.24503857,112680.0,112670.0,0.00839]
[1756135656634,0.39987857,112680.0,112670.0,0.00839]
[1756135657470,0.48001394,112680.0,112670.0,0.003]
[1756135657642,0.39987857,112680.0,112670.0,0.00839]
[1756135659736,0.06754479,112680.0,112670.0,0.18589954]
[1756135659942,0.03058778,112680.0,112670.0,0.42758429]
[1756135660373,0.02733778,112680.0,112670.0,0.42758429]
[1756135660593,0.01389087,112680.0,112670.0,0.27278429]
[1756135660825,0.01389087,112680.0,112670.0,0.42758429]
[1756135661218,0.01389087,112680.0,112670.0,0.27278429]
[1756135661377,0.01389087,112680.0,112670.0,0.42758429]
[1756135662249,0.01389087,112680.0,112670.0,0.82758429]
[1756135662999,0.01389087,112680.0,112670.0,0.82658429]
[1756135663234,0.01389087,112680.0,112670.0,0.84403331]
[1756135663479,0.34,112700.0,112690.0,0.17747803]
[1756135663770,0.34,112700.0,112690.0,0.17962803]
[1756135663944,0.55290017,112700.0,112690.0,0.00539]
[1756135664098,0.55290017,112700.0,112690.0,0.18286803]
[1756135664733,0.55488017,112700.0,112690.0,0.00539]
[1756135664943,0.55290017,112700.0,112690.0,0.00639]
[1756135665967,0.55290017,112700.0,112690.0,0.18386803]
[1756135666804,0.56678847,112700.0,112690.0,0.18386803]
[1756135668077,0.56876847,112700.0,112690.0,0.001]
[1756135668296,0.22876847,112700.0,112690.0,0.001]
[1756135668516,0.23185847,112700.0,112690.0,0.001]
[1756135669417,0.22876847,112700.0,112690.0,0.001]
[1756135669868,0.23185847,112700.0,112690.0,0.001]
[1756135670574,0.22876847,112700.0,112690.0,0.00315]
[1756135670814,0.22876847,112700.0,112690.0,0.001]
[1756135671951,0.56876847,112700.0,112690.0,0.001]
[1756135672383,0.58539586,112700.0,112690.0,0.001]
[1756135672600,0.67535551,112700.0,112690.0,0.001]
[1756135672815,0.58848586,112700.0,112690.0,0.001]
[1756135673235,0.62025788,112700.0,112690.0,0.001]
[1756135673704,0.60636958,112700.0,112690.0,0.001]
[1756135674367,0.17750954,112670.0,112660.0,0.34436052]
[1756135674579,0.17750954,112670.0,112660.0,0.27876021]
[1756135675046,0.17750954,112670.0,112660.0,0.00547494]
[1756135675250,0.17750954,112670.0,112660.0,0.18300023]
[1756135675796,0.17750954,112670.0,112660.0,0.18600023]
[1756135676860,0.17750954,112670.0,112660.0,0.18800023]
[1756135677756,0.19140057,112670.0,112660.0,0.18800023]
[1756135677984,0.01389103,112670.0,112660.0,0.18800023]
[1756135678210,0.19140057,112670.0,112660.0,0.18800023]
[1756135678894,0.19158057,112670.0,112660.0,0.16519494]
[1756135679114,0.19158057,112670.0,112660.0,0.34272023]
[1756135679336,0.19140057,112670.0,112660.0,0.34272023]
[1756135680003,0.19140057,112670.0,112660.0,0.01047494]
[1756135680224,0.19158057,112670.0,112660.0,0.00723494]
[1756135680687,0.19158057,112670.0,112660.0,0.00508494]
[1756135680891,0.19158057,112670.0,112660.0,0.00717494]
[1756135681354,0.19158057,112670.0,112660.0,0.00508494]
[1756135681355,0.53454057,112670.0,112660.0,0.00508494]
[1756135681970,0.52064954,112670.0,112660.0,0.00508494]
[1756135683064,0.62032557,112670.0,112660.0,0.00508494]
[1756135683486,0.62032557,112670.0,112660.0,0.00208494]
[1756135683932,0.72032557,112670.0,112660.0,8.494e-05]
[1756135684138,0.68790298,112670.0,112660.0,8.494e-05]
[1756135684348,0.68890298,112670.0,112660.0,8.494e-05]
[1756135684548,0.72132557,112670.0,112660.0,8.494e-05]
[1756135685179,0.87132557,112670.0,112660.0,8.494e-05]
[1756135685384,0.87432557,112670.0,112660.0,8.494e-05]
[1756135685590,0.89122102,112670.0,112660.0,8.494e-05]
[1756135686008,1.04594102,112670.0,112660.0,8.494e-05]
[1756135686870,0.89122102,112670.0,112660.0,8.494e-05]
[1756135687074,1.04590102,112670.0,112660.0,8.494e-05]
[1756135687508,0.89122102,112670.0,112660.0,8.494e-05]
[1756135687718,1.04590102,112670.0,112660.0,8.494e-05]
[1756135687932,1.01347843,112670.0,112660.0,8.494e-05]
[1756135688140,0.79154499,112670.0,112660.0,8.494e-05]
[1756135688352,0.94626499,112670.0,112660.0,8.494e-05]
[1756135689198,0.97823701,112670.0,112660.0,8.494e-05]
[1756135689443,0.96308622,112670.0,112660.0,8.494e-05]
[1756135689676,0.9630766,112670.0,112660.0,8.494e-05]
[1756135689896,0.89502625,112670.0,112660.0,8.494e-05]
[1756135690195,1.04994625,112670.0,112660.0,8.494e-05]
[1756135692481,0.7311308,112670.0,112660.0,8.494e-05]
[1756135692719,0.69618115,112670.0,112660.0,8.494e-05]
[1756135692943,0.69618115,112670.0,112660.0,0.00531494]
[1756135692944,0.35600115,112670.0,112660.0,0.00531494]
[1756135693177,0.35802115,112670.0,112660.0,8.494e-05]
[1756135693401,0.76520576,112670.0,112660.0,8.494e-05]
[1756135693623,0.85207541,112670.0,112660.0,8.494e-05]
[1756135693853,0.7848908,112670.0,112660.0,8.494e-05]
[1756135694316,0.54112115,112670.0,112660.0,0.00217494]
[1756135694319,0.69972115,112670.0,112660.0,0.00531494]
[1756135694989,0.70174115,112670.0,112660.0,8.494e-05]
[1756135695219,0.73650317,112670.0,112660.0,8.494e-05]
[1756135695895,0.71862539,112670.0,112660.0,8.494e-05]
[1756135696112,0.80549504,112670.0,112660.0,8.494e-05]
[1756135696831,0.80250504,112670.0,112660.0,8.494e-05]
[1756135698113,0.83726706,112670.0,112660.0,8.494e-05]
[1756135698316,0.80549504,112670.0,112660.0,8.494e-05]
[1756135698738,0.80247589,112670.0,112660.0,8.494e-05]
[1756135699720,0.80546589,112670.0,112660.0,8.494e-05]
[1756135700513,0.80546589,112670.0,112660.0,1.416e-05]
[1756135702170,0.80547242,112670.0,112660.0,1.416e-05]
[1756135702600,0.62796288,112670.0,112660.0,1.416e-05]
[1756135702806,0.80547242,112670.0,112660.0,1.416e-05]
[1756135703635,0.83724444,112670.0,112660.0,1.416e-05]
[1756135705361,0.17754105,112650.0,112640.0,0.00297394]
[1756135705611,0.35997938,112650.0,112640.0,0.0055335]
[1756135706116,0.37387505,112650.0,112640.0,0.0055335]
[1756135707343,0.2949047,112650.0,112640.0,0.00555956]
[1756135707561,0.2959047,112650.0,112640.0,0.00555956]
[1756135707777,0.21003505,112650.0,112640.0,0.00555956]
[1756135707980,0.21003505,112650.0,112640.0,0.18311637]
[1756135708185,0.032494,112650.0,112640.0,0.27000112]
[1756135708398,0.01859833,112650.0,112640.0,0.33828112]
[1756135708603,0.002,112650.0,112640.0,0.33828112]
[1756135709788,0.001,112650.0,112640.0,0.33828112]
[1756135710188,0.001,112650.0,112640.0,0.33928112]
[1756135710507,0.52638501,112670.0,112660.0,0.17752529]
[1756135710724,0.54300676,112670.0,112660.0,0.17960529]
[1756135711020,0.54300676,112670.0,112660.0,0.18260529]
[1756135711335,0.35662175,112670.0,112660.0,0.18260529]
[1756135711552,0.37051439,112670.0,112660.0,0.18260529]
[1756135711778,0.54802393,112670.0,112660.0,0.18260529]
[1756135711999,0.53513129,112670.0,112660.0,0.18260529]
[1756135712240,0.53513129,112670.0,112660.0,0.00508]
[1756135712446,0.60639522,112670.0,112660.0,0.00508]
[1756135712659,0.53723129,112670.0,112660.0,0.00508]
[1756135712877,0.53513129,112670.0,112660.0,0.00508]
[1756135713808,0.53613129,112670.0,112660.0,0.00508]
[1756135715355,0.55002422,112670.0,112660.0,0.00508]
[1756135715575,0.55002422,112670.0,112660.0,0.18260529]
[1756135717531,0.37251468,112670.0,112660.0,0.18260529]
[1756135717967,0.55002422,112670.0,112660.0,0.34792529]
[1756135718183,0.53340247,112670.0,112660.0,0.34792529]
[1756135718386,0.5500335,112670.0,112660.0,0.34792529]
[1756135719233,0.55003148,112670.0,112660.0,0.34792529]
[1756135722271,0.55003148,112670.0,112660.0,0.00508]
[1756135722523,0.55003148,112670.0,112660.0,0.16996]
[1756135723579,0.55003148,112670.0,112660.0,0.34748529]
[1756135723989,0.55003148,112670.0,112660.0,0.16996]
[1756135724196,0.55003148,112670.0,112660.0,0.34748529]
[1756135724406,0.53340247,112670.0,112660.0,0.34748529]
[1756135724619,0.51950954,112670.0,112660.0,0.34748529]
[1756135725292,0.51950954,112670.0,112660.0,0.18260529]
[1756135725503,0.51950954,112670.0,112660.0,0.34704529]
[1756135726757,0.51950954,112670.0,112660.0,0.18260529]
[1756135726963,0.51950954,112670.0,112660.0,0.34672529]
[1756135727174,0.342,112670.0,112660.0,0.34672529]
[1756135727612,0.35589221,112670.0,112660.0,0.34672529]
[1756135727804,0.53340175,112670.0,112660.0,0.18260529]
[1756135728265,0.53340175,112670.0,112660.0,0.34656529]
[1756135729193,0.35589221,112670.0,112660.0,0.18260529]
[1756135729399,0.35589221,112670.0,112660.0,0.34644529]
[1756135729641,0.53340175,112670.0,112660.0,0.00508]
[1756135729856,0.53550175,112670.0,112660.0,0.34128529]
[1756135730086,0.53550175,112670.0,112660.0,0.00208]
[1756135730331,0.17752529,112660.0,112650.0,0.18053339]
[1756135730543,0.17752529,112660.0,112650.0,0.18261339]
[1756135730769,0.17962529,112660.0,112650.0,0.17962105]
[1756135730981,0.17962529,112660.0,112640.0,0.52639421]
[1756135731198,0.17754105,112650.0,112640.0,0.51751637]
[1756135731408,0.17964105,112650.0,112640.0,0.68315637]
[1756135731625,0.17964105,112650.0,112640.0,0.41495637]
[1756135731830,0.17964105,112650.0,112640.0,0.07083956]
[1756135732041,0.17964105,112650.0,112640.0,0.23223956]
[1756135732313,0.51964105,112650.0,112640.0,0.23219956]
[1756135732963,0.51964105,112650.0,112640.0,0.40975637]
[1756135733178,0.34,112650.0,112640.0,0.25339637]
[1756135733396,0.34,112650.0,112640.0,0.41771637]
[1756135733833,0.51750954,112670.0,112660.0,0.1775118]
[1756135734045,0.51750954,112670.0,112660.0,0.3407518]
[1756135734258,0.51750954,112670.0,112660.0,0.3458318]
[1756135734690,0.51752529,112660.0,112650.0,0.17751491]
[1756135734899,0.34,112660.0,112650.0,0.34571491]
[1756135735109,0.51752529,112660.0,112650.0,0.34571491]
[1756135735307,0.51960529,112660.0,112650.0,0.18262105]
[1756135735521,0.51960529,112660.0,112650.0,0.34066105]
[1756135735721,0.51960529,112660.0,112650.0,0.16312]
[1756135736181,0.17754105,112650.0,112640.0,0.25813421]
[1756135736415,0.51752529,112660.0,112640.0,0.42304421]
[1756135737246,0.51752529,112660.0,112650.0,0.001]
[1756135737429,0.51960529,112660.0,112650.0,0.001]
[1756135738683,0.52278529,112660.0,112650.0,0.16372]
[1756135739935,0.52278529,112660.0,112650.0,0.16272]
[1756135740344,0.51960529,112660.0,112650.0,0.16272]
[1756135740553,0.51752529,112660.0,112650.0,0.34519105]
[1756135740929,0.51960529,112660.0,112650.0,0.34519105]
[1756135741139,0.51752529,112660.0,112650.0,0.34519105]
[1756135741342,0.51752529,112660.0,112650.0,0.00593]
[1756135741516,0.51960529,112660.0,112650.0,0.16348]
[1756135743766,0.52278529,112660.0,112650.0,0.001]
[1756135743994,0.52278529,112660.0,112650.0,0.1632]
[1756135745452,0.52278529,112660.0,112650.0,0.001]
[1756135745659,0.52278529,112660.0,112650.0,0.16316]
[1756135745866,0.60965494,112660.0,112650.0,0.001]
[1756135746072,0.52278529,112660.0,112650.0,0.001]
[1756135747407,0.51960529,112660.0,112650.0,0.001]
[1756135747593,0.51960529,112660.0,112650.0,0.00593]
[1756135747832,0.51960529,112660.0,112650.0,0.1628]
[1756135747833,0.52278529,112660.0,112650.0,0.1628]
[1756135748048,0.52278529,112660.0,112650.0,0.001]
[1756135748468,0.60965494,112660.0,112650.0,0.001]
[1756135749316,0.78526988,112660.0,112650.0,0.001]
[1756135750577,0.62354988,112660.0,112650.0,0.001]
[1756135750786,0.78514988,112660.0,112650.0,0.001]
[1756135751470,0.53668023,112660.0,112650.0,0.001]
[1756135751713,0.69498023,112660.0,112650.0,0.001]
[1756135751942,0.68108529,112660.0,112650.0,0.001]
[1756135752614,0.51752529,112660.0,112650.0,0.18347105]
[1756135753297,0.51752529,112660.0,112650.0,0.34487105]
[1756135753992,0.51752529,112660.0,112650.0,0.16733]
[1756135754220,0.51752529,112660.0,112650.0,0.34487105]
[1756135754786,0.34,112660.0,112650.0,0.34487105]
[1756135754983,0.51752529,112660.0,112650.0,0.34487105]
[1756135755453,0.51752529,112660.0,112650.0,0.16733]
[1756135755686,0.51960529,112660.0,112650.0,0.16733]
[1756135755910,0.53349911,112660.0,112650.0,0.1622]
[1756135756349,0.53349911,112660.0,112650.0,0.16419]
[1756135756890,0.53141911,112660.0,112650.0,0.34467105]
[1756135757374,0.35389382,112660.0,112650.0,0.34467105]
[1756135757594,0.35389382,112660.0,112650.0,0.4315558]
[1756135759106,0.35389382,112660.0,112650.0,0.4998358]
[1756135759531,0.01389382,112660.0,112650.0,0.4998358]
[1756135760083,0.01389382,112660.0,112650.0,0.4898358]
[1756135760689,0.01389382,112660.0,112650.0,0.50728482]
[1756135760892,0.01389382,112660.0,112650.0,0.90728482]
[1756135762954,0.51749384,112680.0,112670.0,0.17750954]
[1756135763177,0.34,112680.0,112670.0,0.34283954]
[1756135763519,0.51749378,112680.0,112670.0,0.18243954]
[1756135763730,0.51957378,112680.0,112670.0,0.34295954]
[1756135764418,0.51749378,112680.0,112670.0,0.34295954]
[1756135764860,0.34,112680.0,112670.0,0.34295954]
[1756135765070,0.34,112680.0,112670.0,0.42984429]
[1756135765500,0.341,112680.0,112670.0,0.42984429]
[1756135766164,0.341,112680.0,112670.0,0.42964429]
[1756135766848,0.35489085,112680.0,112670.0,0.42964429]
[1756135767307,0.35489085,112680.0,112670.0,0.26932429]
[1756135767520,0.35489085,112680.0,112670.0,0.42948429]
[1756135767948,0.01489085,112680.0,112670.0,0.42948429]
[1756135768204,0.01389085,112680.0,112670.0,0.42948429]
[1756135768465,0.01389085,112680.0,112670.0,0.27132429]
[1756135768683,0.01389085,112680.0,112670.0,0.43132429]
[1756135768894,0.01389085,112680.0,112670.0,0.43332429]
[1756135769493,0.01389085,112680.0,112670.0,0.43328429]
[1756135769953,0.01389085,112680.0,112670.0,0.27332429]
[1756135770169,0.01389085,112680.0,112670.0,0.43320429]
[1756135770900,0.01589085,112680.0,112670.0,0.43304429]
[1756135771112,0.01389085,112680.0,112670.0,0.43304429]
[1756135773384,0.01389085,112680.0,112670.0,0.27332429]
[1756135773618,0.01389085,112680.0,112670.0,0.43296429]
[1756135774032,0.19338463,112680.0,112670.0,0.42994429]
[1756135774246,0.01389085,112680.0,112670.0,0.42994429]
[1756135774453,0.01389085,112680.0,112670.0,0.43311429]
[1756135775085,0.19138463,112680.0,112670.0,0.27355429]
[1756135775269,0.19338463,112680.0,112670.0,0.43307429]
[1756135776140,0.19338463,112680.0,112670.0,0.42791429]
[1756135776353,0.19637463,112680.0,112670.0,0.1634]
[1756135776564,0.19637463,112680.0,112670.0,0.004]
[1756135776772,0.18248378,112680.0,112670.0,0.16336]
[1756135776977,0.18248378,112680.0,112670.0,0.004]
[1756135777189,0.18248378,112680.0,112670.0,0.1634]
[1756135778545,0.18248378,112680.0,112670.0,0.34086954]
[1756135778758,0.17949378,112680.0,112670.0,0.34086954]
[1756135779185,0.52248378,112680.0,112670.0,0.004]
[1756135779398,0.52248378,112680.0,112670.0,0.16328]
[1756135779816,0.53637521,112680.0,112670.0,0.16328]
[1756135780047,0.53637521,112680.0,112670.0,0.004]
[1756135780283,0.75699025,112680.0,112670.0,0.002]
[1756135781163,0.75699025,112680.0,112670.0,0.003]
[1756135781505,0.75699025,112680.0,112670.0,0.002]
[1756135781922,0.51750954,112670.0,112660.0,0.15916]
[1756135782104,0.51950954,112670.0,112660.0,0.15916]
[1756135782655,0.51950954,112670.0,112660.0,0.16121]
[1756135782863,0.51950954,112670.0,112660.0,0.33668529]
[1756135783106,0.51950954,112670.0,112660.0,0.33873529]
[1756135783316,0.34,112670.0,112660.0,0.34190529]
[1756135783970,0.34,112670.0,112660.0,0.34290529]
[1756135784177,0.51750954,112670.0,112660.0,0.34290529]
[1756135784573,0.51950954,112670.0,112660.0,0.33973529]
[1756135785199,0.51950954,112670.0,112660.0,0.34073529]
[1756135785707,0.53340183,112670.0,112660.0,0.16321]
[1756135785920,0.53639183,112670.0,112660.0,0.002]
[1756135786154,0.53639183,112670.0,112660.0,0.1608]
[1756135787214,0.53639183,112670.0,112660.0,0.002]
[1756135787423,0.53639183,112670.0,112660.0,0.16072]
[1756135788483,0.53639183,112670.0,112660.0,0.16064]
[1756135789878,0.53340183,112670.0,112660.0,0.16064]
[1756135791305,0.53639183,112670.0,112660.0,0.16064]
[1756135793273,0.53340183,112670.0,112660.0,0.16064]
[1756135794147,0.51950954,112670.0,112660.0,0.16064]
[1756135794802,0.51950954,112670.0,112660.0,0.16586]
[1756135795022,0.51950954,112670.0,112660.0,0.34338529]
[1756135795243,0.51750954,112670.0,112660.0,0.34338529]
[1756135795972,0.34,112670.0,112660.0,0.34338529]
[1756135797068,0.34,112670.0,112660.0,0.43027004]
[1756135797280,0.51747992,112690.0,112680.0,0.17749378]
[1756135797492,0.19412568,112690.0,112680.0,0.33760378]
[1756135797680,0.19412568,112690.0,112680.0,0.34080378]
[1756135797927,0.20801618,112690.0,112680.0,0.34080378]
[1756135798114,0.20843618,112690.0,112680.0,0.34080378]
[1756135798340,0.54843618,112690.0,112680.0,0.34080378]
[1756135798564,0.54857991,112690.0,112680.0,0.34080378]
[1756135799213,0.54815991,112690.0,112680.0,0.34080378]
[1756135799436,0.37068188,112690.0,112680.0,0.34080378]
[1756135799624,0.54815991,112690.0,112680.0,0.34080378]
[1756135800041,0.54915991,112690.0,112680.0,0.34080378]
[1756135800269,0.37168188,112690.0,112680.0,0.34080378]
[1756135800491,0.35503423,112690.0,112680.0,0.34080378]
[1756135800801,0.35503423,112690.0,112680.0,0.42768853]
[1756135801013,0.01503423,112690.0,112680.0,0.49596853]
[1756135801241,0.00214373,112690.0,112680.0,0.49596853]
[1756135801467,0.00114373,112690.0,112680.0,1.73604985]
[1756135801683,0.00014373,112690.0,112680.0,1.46784985]
[1756135801906,0.00014373,112690.0,112680.0,0.51341755]
[1756135802351,0.00014373,112690.0,112680.0,0.35629755]
[1756135802815,0.00014373,112690.0,112680.0,0.51413755]
[1756135803487,0.00014373,112690.0,112680.0,0.51513755]
[1756135803707,0.00014373,112690.0,112680.0,0.91513755]
[1756135803957,0.00014373,112690.0,112680.0,0.91521755]
[1756135804184,0.00014373,112690.0,112680.0,0.91421755]
[1756135804398,0.00014373,112690.0,112680.0,0.91413755]
[1756135804659,0.00014373,112690.0,112680.0,0.91717755]
[1756135804880,0.00014373,112690.0,112680.0,0.91617755]
[1756135805575,0.00014373,112690.0,112680.0,0.91917755]
[1756135806228,0.00014373,112690.0,112680.0,0.90172853]
[1756135806656,0.00014373,112690.0,112680.0,0.50172853]
[1756135807317,0.00014373,112690.0,112680.0,0.34384853]
[1756135807528,0.00014373,112690.0,112680.0,0.50156853]
[1756135807744,0.00014373,112690.0,112680.0,0.34384853]
[1756135807959,0.00014373,112690.0,112680.0,0.50152853]
[1756135808197,0.00014373,112690.0,112680.0,0.34384853]
[1756135808658,0.00014373,112690.0,112680.0,0.50144853]
[1756135809748,0.00014373,112690.0,112680.0,0.51889755]
[1756135810199,0.00014373,112690.0,112680.0,0.36129755]
[1756135810414,0.00014373,112690.0,112680.0,0.51877755]
[1756135810622,0.00014373,112690.0,112680.0,1.71572985]
[1756135810835,0.00014373,112690.0,112680.0,0.76129755]
[1756135811042,0.00014373,112690.0,112680.0,0.91877755]
[1756135811258,0.00014373,112690.0,112680.0,0.76129755]
[1756135811464,0.00014373,112690.0,112680.0,0.91877755]
[1756135812116,0.00014373,112690.0,112680.0,0.76129755]
[1756135812337,0.00014373,112690.0,112680.0,0.91873755]
[1756135813030,0.00014373,112690.0,112680.0,0.36129755]
[1756135813270,0.00014373,112690.0,112680.0,0.51873755]
[1756135813538,0.00014373,112690.0,112680.0,0.51869755]
[1756135814211,0.00014373,112690.0,112680.0,0.51865755]
[1756135814440,0.17972176,112690.0,112680.0,0.33865853]
[1756135814659,0.00224373,112690.0,112680.0,0.49597853]
[1756135814887,0.17972176,112690.0,112680.0,0.33865853]
[1756135815123,0.18288176,112690.0,112680.0,0.40905378]
[1756135815350,0.00224373,112690.0,112680.0,0.40905378]
[1756135816329,0.01613231,112690.0,112680.0,0.40905378]
[1756135817023,0.01613231,112690.0,112680.0,0.41104378]
[1756135817707,0.01613231,112690.0,112680.0,0.41424378]
[1756135818373,0.01403231,112690.0,112680.0,0.50112853]
[1756135818850,0.01403231,112690.0,112680.0,0.51857755]
[1756135819305,0.01403231,112690.0,112680.0,1.47228281]
[1756135819528,0.01403231,112690.0,112680.0,0.91857755]
[1756135819754,0.01403231,112690.0,112680.0,1.87228281]
[1756135820391,0.01403231,112690.0,112680.0,1.71500281]
[1756135820602,0.01403231,112690.0,112680.0,0.91825755]
[1756135820803,0.02292905,112710.0,112700.0,0.17746228]
[1756135821014,0.02502905,112710.0,112700.0,0.42329703]
[1756135821215,0.07110163,112720.0,112710.0,0.17744654]
[1756135821424,0.09814187,112720.0,112710.0,0.17744654]
[1756135822105,0.02704024,112720.0,112710.0,0.17744654]
[1756135822322,0.02704024,112720.0,112710.0,0.17843654]
[1756135822534,0.04994658,112720.0,112710.0,0.17843654]
[1756135822756,0.18949946,112740.0,112730.0,0.17741506]
[1756135823009,0.23997548,112740.0,112730.0,0.157]
[1756135823167,0.24388887,112740.0,112730.0,0.157]
[1756135823422,0.58849633,112740.0,112730.0,0.156]
[1756135823841,0.60304844,112740.0,112730.0,0.33341506]
[1756135824299,0.57449772,112740.0,112730.0,0.33341506]
[1756135824557,0.57944278,112740.0,112730.0,0.33341506]
[1756135824789,0.40204346,112740.0,112730.0,0.33540506]
[1756135825020,0.06189346,112740.0,112730.0,0.33860506]
[1756135825260,0.06189346,112740.0,112730.0,0.42548981]
[1756135825261,0.03897098,112740.0,112730.0,0.42548981]
[1756135825402,0.03997098,112740.0,112730.0,0.42548981]
[1756135825632,0.2204903,112740.0,112720.0,0.17741666]
[1756135825841,0.2204903,112740.0,112730.0,0.33429506]
[1756135826152,0.2194903,112740.0,112720.0,0.26430141]
[1756135826492,0.2165203,112740.0,112730.0,0.15788]
[1756135826702,0.2194903,112740.0,112730.0,0.15788]
[1756135826835,0.5614903,112740.0,112730.0,0.15788]
[1756135827264,0.5594903,112740.0,112730.0,0.15788]
[1756135827685,0.58214797,112740.0,112730.0,0.15788]
[1756135827892,0.58314797,112740.0,112730.0,0.15788]
[1756135828484,0.58938673,112740.0,112730.0,0.15772]
[1756135828669,0.17741506,112730.0,112720.0,0.1774275]
[1756135828922,0.20437706,112730.0,112720.0,0.3341475]
[1756135829105,0.20734706,112730.0,112720.0,0.15772]
[1756135829311,0.20734706,112730.0,112720.0,0.3351508]
[1756135829514,0.20437706,112730.0,112720.0,0.3351508]
[1756135829720,0.20437706,112730.0,112720.0,0.3341508]
[1756135830149,0.20437706,112730.0,112720.0,0.3351508]
[1756135830622,0.20437706,112730.0,112720.0,0.3341508]
[1756135831322,0.20437706,112730.0,112720.0,0.1774308]
[1756135831532,0.20437706,112730.0,112720.0,0.3341508]
[1756135832176,0.026962,112730.0,112720.0,0.3361708]
[1756135832419,0.024942,112730.0,112720.0,0.3391108]
[1756135832616,0.024942,112730.0,112720.0,0.42699555]
[1756135833301,0.36280145,112740.0,112720.0,0.42699555]
[1756135833302,0.36280145,112740.0,112730.0,0.17741506]
[1756135833511,0.38775069,112740.0,112730.0,0.26631981]
[1756135833719,0.38775069,112740.0,112730.0,0.26925981]
[1756135834138,0.38775061,112740.0,112730.0,0.26925981]
[1756135834353,0.56716993,112740.0,112730.0,0.33413506]
[1756135834988,0.56916993,112740.0,112730.0,0.33413506]
[1756135835423,0.40565449,112740.0,112730.0,0.33615506]
[1756135835651,0.40365449,112740.0,112730.0,0.33909506]
[1756135836957,0.40163449,112740.0,112730.0,0.33909506]
[1756135837608,0.40365449,112740.0,112730.0,0.33611506]
[1756135837819,0.58105381,112740.0,112730.0,0.18237506]
[1756135838029,0.58105381,112740.0,112730.0,0.33611506]
[1756135838825,0.58105381,112740.0,112730.0,0.33409506]
[1756135839269,0.58105381,112740.0,112730.0,0.17741506]
[1756135839483,0.17741506,112730.0,112710.0,0.51288654]
[1756135839711,0.54236422,112730.0,112720.0,0.3341108]
[1756135839910,0.1794508,112720.0,112710.0,0.59977129]
[1756135840153,0.1794508,112720.0,112710.0,0.24468654]
[1756135840363,0.20439153,112720.0,112710.0,0.24568654]
[1756135840572,0.17744654,112710.0,112700.0,0.17746228]
[1756135840787,0.5204008,112720.0,112700.0,0.33616228]
[1756135840968,0.17946654,112710.0,112700.0,0.33616228]
[1756135841436,0.17946654,112710.0,112700.0,0.33910228]
[1756135841647,0.17946654,112710.0,112700.0,0.17746228]
[1756135842084,0.17946654,112710.0,112700.0,0.33414228]
[1756135842589,0.00202,112710.0,112700.0,0.33616228]
[1756135842861,0.34,112720.0,112710.0,0.17744654]
[1756135843093,0.36696303,112720.0,112710.0,0.17744654]
[1756135843302,0.54439383,112720.0,112710.0,0.17844654]
[1756135843513,0.5443949,112720.0,112710.0,0.17844654]
[1756135843731,0.5443949,112720.0,112710.0,0.17744654]
[1756135843954,0.5443949,112720.0,112700.0,0.33708228]
[1756135844161,0.5443949,112720.0,112710.0,0.17946654]
[1756135844370,0.5443949,112720.0,112710.0,0.17744654]
[1756135844579,0.5443949,112720.0,112710.0,0.17946654]
[1756135844792,0.3669641,112720.0,112710.0,0.17946654]
[1756135845221,0.3649441,112720.0,112710.0,0.18240654]
[1756135845430,0.5194508,112720.0,112700.0,0.17946228]
[1756135845632,0.5194508,112720.0,112710.0,0.33412654]
[1756135846249,0.5194508,112720.0,112710.0,0.15668]
[1756135846474,0.17744654,112710.0,112700.0,0.18046228]
[1756135846752,0.17946654,112710.0,112700.0,0.33716228]
[1756135847174,0.17946654,112710.0,112700.0,0.001]
[1756135847415,0.17946654,112710.0,112700.0,0.33514228]
[1756135847621,0.18243654,112710.0,112700.0,0.15668]
[1756135847807,0.17746228,112700.0,112690.0,0.06824]
[1756135848044,0.17948228,112700.0,112690.0,0.22492]
[1756135848255,0.17948228,112700.0,112690.0,0.06824]
[1756135848458,0.51948228,112700.0,112690.0,0.22492]
[1756135848668,0.53337034,112700.0,112690.0,0.22492]
[1756135849057,0.53337034,112700.0,112690.0,0.40239803]
[1756135849495,0.53634034,112700.0,112690.0,0.06824]
[1756135849703,0.53634034,112700.0,112690.0,0.22492]
[1756135850545,0.53337034,112700.0,112690.0,0.22492]
[1756135851422,0.53634034,112700.0,112690.0,0.22592]
[1756135851634,0.53337034,112700.0,112690.0,0.40339803]
[1756135851844,0.51948228,112700.0,112690.0,0.22592]
[1756135852437,0.51948228,112700.0,112690.0,0.22492]
[1756135852844,0.17748921,112690.0,112670.0,0.5254484]
[1756135853051,0.51950921,112690.0,112680.0,0.15668]
[1756135853213,0.51950921,112690.0,112670.0,0.39911688]
[1756135853412,0.51950921,112690.0,112680.0,0.15668]
[1756135853846,0.17749378,112680.0,112670.0,0.30930503]
[1756135854050,0.17749378,112680.0,112670.0,0.40459327]
[1756135854051,0.17951378,112680.0,112670.0,0.40459327]
[1756135854278,0.17951378,112680.0,112670.0,0.07040373]